bitfinex/quotes_BTCUSD_20250714
["timestamp","ask_amount","ask_price","bid_price","bid_amount"]
[1752453492751,0.00886752,119000.0,118990.0,0.89112966]
[1752453494090,0.00886752,119000.0,118990.0,0.90978966]
[1752453499870,0.00886752,119000.0,118990.0,0.90652966]
[1752453500073,0.00886752,119000.0,118990.0,0.90858966]
[1752453500269,0.00566752,119000.0,118990.0,1.10990966]
[1752453500941,0.00886752,119000.0,118990.0,1.10990966]
[1752453501346,0.00886752,119000.0,118990.0,1.09244966]
[1752453501550,0.00886752,119000.0,118990.0,1.07594966]
[1752453501722,0.00886752,119000.0,118990.0,1.09114966]
[1752453501929,0.00886752,119000.0,118990.0,1.10654966]
[1752453502563,0.00886752,119000.0,118990.0,1.09114966]
[1752453502946,0.00886752,119000.0,118990.0,1.07594966]
[1752453504384,0.00886752,119000.0,118990.0,0.90928133]
[1752453504594,0.02446752,119000.0,118990.0,0.73366]
[1752453504803,0.02446752,119000.0,118990.0,0.77132833]
[1752453505241,0.02446752,119000.0,118990.0,0.66664833]
[1752453505662,0.00886752,119000.0,118990.0,0.97122966]
[1752453505870,0.00369752,119000.0,118990.0,1.00728966]
[1752453506079,0.00369752,119000.0,118990.0,1.31187099]
[1752453506724,0.00369752,119000.0,118990.0,1.41184177]
[1752453513711,0.00369752,119000.0,118990.0,1.10726044]
[1752453514357,0.00369752,119000.0,118990.0,1.41184177]
[1752453514795,0.00369752,119000.0,118990.0,1.51652177]
[1752453517307,0.06734857,119030.0,119020.0,0.33648133]
[1752453517566,0.06949857,119030.0,119020.0,0.75954751]
[1752453517831,0.07262857,119030.0,119020.0,0.75954751]
[1752453518979,0.07962857,119030.0,119020.0,0.76054751]
[1752453519211,0.07962857,119030.0,119020.0,0.63533584]
[1752453519487,0.07962857,119030.0,119020.0,0.76429584]
[1752453519733,0.08062857,119030.0,119020.0,0.76429584]
[1752453520296,0.08885906,119030.0,119020.0,0.76429584]
[1752453521003,0.02151049,119030.0,119020.0,0.76429584]
[1752453521469,0.02151049,119030.0,119020.0,0.78039584]
[1752453523077,0.02151049,119030.0,119020.0,0.76429584]
[1752453526565,0.02151049,119030.0,119020.0,0.63533584]
[1752453526779,0.02151049,119030.0,119020.0,0.76429584]
[1752453528252,0.05241049,119030.0,119020.0,0.45971451]
[1752453529161,0.05241049,119030.0,119020.0,0.16771203]
[1752453529403,0.84977032,119030.0,119020.0,0.0010837]
[1752453529878,0.87496032,119030.0,119020.0,0.1300437]
[1752453533317,0.80761175,119030.0,119020.0,0.1300437]
[1752453533536,0.50303042,119030.0,119020.0,0.1300437]
[1752453539962,0.48753042,119030.0,119020.0,0.1300437]
[1752453541287,0.50393042,119030.0,119020.0,0.1300437]
[1752453541508,0.80851175,119030.0,119020.0,0.1300437]
[1752453541730,0.80851175,119030.0,119020.0,0.3313637]
[1752453546085,0.50393042,119030.0,119020.0,0.3313637]
[1752453546293,0.80851175,119030.0,119020.0,0.3313637]
[1752453547854,0.80851175,119030.0,119020.0,0.2024037]
[1752453548064,0.80851175,119030.0,119020.0,0.3313637]
[1752453550968,0.48753042,119030.0,119020.0,0.3313637]
[1752453551374,0.47213042,119030.0,119020.0,0.3313637]
[1752453562506,0.79231175,119030.0,119020.0,0.3313237]
[1752453564994,0.48773042,119030.0,119020.0,0.3313237]
[1752453565200,0.79231175,119030.0,119020.0,0.3313237]
[1752453565423,0.79231175,119030.0,119020.0,0.2024037]
[1752453565649,0.79231175,119030.0,119020.0,0.3313237]
[1752453566730,0.80791175,119030.0,119020.0,0.2024037]
[1752453567010,0.355,119020.0,119000.0,0.3112]
[1752453567245,0.355,119020.0,119010.0,0.33024]
[1752453567246,0.65958133,119020.0,119010.0,0.33024]
[1752453567465,0.76514126,119020.0,119010.0,0.33024]
[1752453567678,0.79033426,119020.0,119010.0,0.33024]
[1752453569197,0.47055293,119020.0,119010.0,0.33024]
[1752453569416,0.45555293,119020.0,119010.0,0.33024]
[1752453569822,0.45755293,119020.0,119010.0,0.33024]
[1752453570033,0.46155293,119020.0,119010.0,0.33024]
[1752453570458,0.45755293,119020.0,119010.0,0.33024]
[1752453570676,0.46255293,119020.0,119010.0,0.33024]
[1752453571114,0.47835293,119020.0,119010.0,0.33024]
[1752453571868,0.46255293,119020.0,119010.0,0.33024]
[1752453572712,0.46255293,119020.0,119010.0,0.36184]
[1752453573953,0.46255293,119020.0,119010.0,0.34584]
[1752453574167,0.46255293,119020.0,119010.0,0.33024]
[1752453578679,0.46255293,119020.0,119010.0,0.34684]
[1752453578911,0.46255293,119020.0,119010.0,0.36204]
[1752453579565,0.46255293,119020.0,119010.0,0.36401]
[1752453579777,0.45762293,119020.0,119010.0,0.66859133]
[1752453580200,0.45762293,119020.0,119010.0,0.70918966]
[1752453580840,0.032193,119020.0,119010.0,0.70918966]
[1752453582157,0.030193,119020.0,119010.0,0.70918966]
[1752453582368,0.025193,119020.0,119010.0,1.00488966]
[1752453582557,0.025193,119020.0,119010.0,1.00588966]
[1752453582798,0.030193,119020.0,119010.0,1.00588966]
[1752453598776,0.005,119020.0,119010.0,1.00588966]
[1752453599373,0.005,119020.0,119010.0,1.09131959]
[1752453600425,0.00823049,119030.0,119010.0,1.09031959]
[1752453600656,0.09252957,119050.0,119020.0,0.46985181]
[1752453600871,0.09252957,119050.0,119040.0,0.37570966]
[1752453601080,0.09252957,119050.0,119040.0,0.50454966]
[1752453601967,0.10091661,119050.0,119040.0,0.50463383]
[1752453602196,0.10291661,119050.0,119040.0,0.50463383]
[1752453602666,0.03556804,119050.0,119040.0,0.50463383]
[1752453602914,0.03556804,119050.0,119040.0,0.80033383]
[1752453603390,0.04056804,119050.0,119040.0,0.80033383]
[1752453603621,0.03556804,119050.0,119040.0,0.80033383]
[1752453603873,0.04356804,119050.0,119040.0,0.80133383]
[1752453604138,0.04356804,119050.0,119040.0,1.10911516]
[1752453604364,0.01838704,119050.0,119040.0,1.10911516]
[1752453605284,0.01038704,119050.0,119040.0,1.10811516]
[1752453605737,0.00838704,119050.0,119040.0,1.10811516]
[1752453605941,0.0002,119080.0,119070.0,0.03766833]
[1752453606155,0.0002,119080.0,119070.0,1.00108966]
[1752453606393,0.3402,119080.0,119070.0,0.87548966]
[1752453606622,0.025375,119080.0,119070.0,1.00428966]
[1752453607282,0.033375,119080.0,119070.0,1.00628966]
[1752453608451,0.04163405,119080.0,119070.0,1.00628966]
[1752453608654,0.04263405,119080.0,119070.0,1.00628966]
[1752453609778,0.01745905,119080.0,119070.0,1.00628966]
[1752453611436,0.01645905,119080.0,119070.0,1.00628966]
[1752453611680,0.01645905,119080.0,119070.0,1.00428966]
[1752453611898,0.00845905,119080.0,119070.0,1.00428966]
[1752453612947,0.01645905,119080.0,119070.0,1.00528966]
[1752453615017,0.01645905,119080.0,119070.0,0.57190833]
[1752453615270,0.01645905,119080.0,119070.0,1.00204966]
[1752453617341,0.01645905,119080.0,119070.0,0.69746833]
[1752453617557,0.01645905,119080.0,119070.0,1.00204966]
[1752453617957,0.01645905,119080.0,119070.0,1.00524966]
[1752453621119,0.01645905,119080.0,119070.0,1.09067959]
[1752453623367,0.0082,119080.0,119070.0,1.40980177]
[1752453623536,0.0082,119080.0,119070.0,1.45980177]
[1752453624151,0.0002,119080.0,119070.0,1.45880177]
[1752453624596,0.0032,119080.0,119070.0,1.45980177]
[1752453624798,0.0032,119080.0,119070.0,1.46280177]
[1752453626027,0.0032,119080.0,119070.0,1.56740177]
[1752453626640,0.0002,119100.0,119090.0,0.032]
[1752453626843,0.0002,119100.0,119090.0,0.46854133]
[1752453627066,0.0002,119100.0,119090.0,0.47174133]
[1752453627470,0.0002,119100.0,119090.0,0.50940966]
[1752453627673,0.06734857,119130.0,119100.0,0.3565]
[1752453627921,0.16839059,119130.0,119110.0,0.46690133]
[1752453628125,0.00212,119120.0,119110.0,0.33698133]
[1752453628295,0.01773209,119120.0,119110.0,0.50456966]
[1752453628702,0.01038324,119120.0,119110.0,0.50456966]
[1752453628911,0.02599687,119120.0,119110.0,0.80222966]
[1752453629294,0.02599687,119120.0,119110.0,0.49444833]
[1752453629552,0.02599687,119120.0,119110.0,0.46008833]
[1752453629761,0.41921813,119120.0,119110.0,0.13]
[1752453630698,0.41921813,119120.0,119110.0,0.13004]
[1752453630915,0.43461813,119120.0,119110.0,0.3312]
[1752453631136,0.45917584,119120.0,119110.0,0.3312]
[1752453632230,0.46617584,119120.0,119110.0,0.3322]
[1752453632666,0.80617584,119120.0,119110.0,0.3322]
[1752453633116,0.80717584,119120.0,119110.0,0.3322]
[1752453633342,0.8056374,119120.0,119110.0,0.3322]
[1752453634475,0.49405607,119120.0,119110.0,0.3312]
[1752453634700,0.47783006,119120.0,119110.0,0.3332]
[1752453634918,0.46513006,119120.0,119110.0,0.3332]
[1752453635560,0.47295773,119120.0,119110.0,0.3332]
[1752453636039,0.46513006,119120.0,119110.0,0.3332]
[1752453636883,0.46413006,119120.0,119110.0,0.3332]
[1752453637322,0.79224209,119120.0,119110.0,0.3332]
[1752453637788,0.78441139,119120.0,119110.0,0.3332]
[1752453638001,0.79226354,119120.0,119110.0,0.3332]
[1752453641281,0.47498221,119120.0,119110.0,0.3332]
[1752453642158,0.47119065,119120.0,119110.0,0.40424833]
[1752453642379,0.04576072,119120.0,119110.0,0.71179966]
[1752453642612,0.03792823,119120.0,119110.0,0.71179966]
[1752453642830,0.03833823,119120.0,119110.0,0.71179966]
[1752453643073,0.03792823,119120.0,119110.0,0.71179966]
[1752453643855,0.03792823,119120.0,119110.0,0.40721833]
[1752453644062,0.03792823,119120.0,119110.0,1.00429966]
[1752453644936,0.02692823,119120.0,119110.0,1.00229966]
[1752453645389,0.03492823,119120.0,119110.0,1.00329966]
[1752453645611,0.03192823,119120.0,119110.0,1.00329966]
[1752453646010,0.03292823,119120.0,119110.0,1.00329966]
[1752453646424,0.01726324,119120.0,119110.0,1.00329966]
[1752453646554,0.0329439,119120.0,119110.0,1.00329966]
[1752453646957,0.03294207,119120.0,119110.0,1.00329966]
[1752453650955,0.03294207,119120.0,119110.0,1.08872959]
[1752453651188,0.03294207,119120.0,119110.0,1.39331092]
[1752453651393,0.01726324,119120.0,119110.0,1.08872959]
[1752453651836,0.01626324,119120.0,119110.0,1.08872959]
[1752453652010,0.35080941,119160.0,119110.0,1.05742959]
[1752453652289,0.08542993,119150.0,119140.0,0.0314]
[1752453652516,0.11168839,119150.0,119140.0,0.45402]
[1752453652719,0.11168839,119150.0,119140.0,0.49168833]
[1752453653055,0.11168839,119150.0,119140.0,0.49673833]
[1752453653355,0.02625846,119150.0,119140.0,0.49673833]
[1752453653592,0.02675664,119150.0,119140.0,0.49673833]
[1752453654447,0.03775664,119150.0,119140.0,0.49773833]
[1752453655106,0.03567664,119150.0,119140.0,0.80231966]
[1752453655312,0.0356697,119150.0,119140.0,0.80231966]
[1752453655541,0.0376697,119150.0,119140.0,0.80231966]
[1752453656238,0.0376697,119150.0,119140.0,0.88774959]
[1752453656453,0.02200302,119150.0,119140.0,0.75762959]
[1752453656661,0.02000302,119150.0,119140.0,0.88762959]
[1752453657303,0.00900302,119150.0,119140.0,0.88662959]
[1752453657729,0.01700302,119150.0,119140.0,0.88762959]
[1752453657944,0.01700302,119150.0,119140.0,0.58304826]
[1752453658154,0.01700302,119150.0,119140.0,0.88762959]
[1752453658368,0.01700302,119150.0,119140.0,0.88758959]
[1752453660077,0.01700302,119150.0,119140.0,0.49753833]
[1752453660323,0.01904302,119150.0,119140.0,0.49456833]
[1752453660802,0.32659435,119150.0,119140.0,0.16858833]
[1752453661260,0.02201302,119150.0,119140.0,0.16858833]
[1752453661472,0.32659435,119150.0,119140.0,0.16858833]
[1752453661687,0.32659435,119150.0,119140.0,0.03866833]
[1752453661909,0.66659435,119150.0,119140.0,0.16858833]
[1752453662126,0.36201302,119150.0,119140.0,0.16858833]
[1752453662335,0.36201302,119150.0,119140.0,0.16854833]
[1752453664123,0.35904302,119150.0,119140.0,0.16854833]
[1752453665508,0.35904302,119150.0,119140.0,0.18354833]
[1752453665954,0.35904302,119150.0,119140.0,0.20157833]
[1752453666170,0.35700302,119150.0,119140.0,0.20478833]
[1752453667100,0.01700302,119150.0,119140.0,0.87949073]
[1752453669646,0.01700302,119150.0,119140.0,0.58263826]
[1752453672988,0.01700302,119150.0,119140.0,0.54496993]
[1752453673408,0.01700302,119150.0,119140.0,0.58263826]
[1752453673621,0.01700302,119150.0,119140.0,0.54496993]
[1752453673823,0.01700302,119150.0,119140.0,0.58263826]
[1752453674727,0.00849818,119150.0,119140.0,0.58263826]
[1752453674938,0.00849818,119150.0,119140.0,0.54496993]
[1752453675143,0.00849818,119150.0,119140.0,0.58263826]
[1752453675379,0.00849818,119150.0,119140.0,0.87941073]
[1752453675817,0.00849818,119150.0,119140.0,0.58263826]
[1752453676700,0.00849818,119150.0,119140.0,0.87941073]
[1752453676952,0.34288,119190.0,119170.0,0.0159]
[1752453677168,0.42830993,119190.0,119180.0,0.3308]
[1752453677371,0.43034993,119190.0,119180.0,0.3308]
[1752453677787,0.43892269,119190.0,119180.0,0.3308]
[1752453678232,0.44992269,119190.0,119180.0,0.3308]
[1752453678438,0.43992269,119190.0,119180.0,0.33088417]
[1752453678654,0.43892269,119190.0,119180.0,0.33088417]
[1752453678858,0.44992269,119190.0,119180.0,0.34808417]
[1752453679502,0.44684269,119190.0,119180.0,0.34808417]
[1752453680127,0.44884269,119190.0,119180.0,0.34808417]
[1752453680559,0.47399569,119190.0,119180.0,0.34808417]
[1752453681624,0.47399569,119190.0,119180.0,0.36378417]
[1752453682128,0.47399569,119190.0,119180.0,0.34808417]
[1752453682760,0.47399569,119190.0,119180.0,0.63208599]
[1752453684014,0.47707569,119190.0,119180.0,0.63208599]
[1752453684469,0.47707569,119190.0,119180.0,0.61588599]
[1752453685974,0.49274423,119190.0,119180.0,0.61588599]
[1752453687941,0.49274423,119190.0,119180.0,0.63188599]
[1752453689315,0.48966423,119190.0,119180.0,0.63188599]
[1752453689841,0.48966423,119190.0,119180.0,0.64698599]
[1752453690054,0.49274423,119190.0,119180.0,0.64698599]
[1752453690262,0.49274423,119190.0,119180.0,0.68465432]
[1752453690480,0.49274423,119190.0,119180.0,0.66955432]
[1752453691144,0.49274423,119190.0,119180.0,0.68465432]
[1752453691563,0.48966423,119190.0,119180.0,0.68465432]
[1752453691794,0.0372413,119190.0,119180.0,0.68967432]
[1752453692019,0.52157276,119190.0,119180.0,0.68967432]
[1752453692235,0.86157276,119190.0,119180.0,0.99337478]
[1752453692467,0.36157276,119190.0,119180.0,0.99337478]
[1752453693140,0.02157276,119190.0,119180.0,0.99337478]
[1752453693606,0.02157276,119190.0,119180.0,0.68967432]
[1752453693828,0.02157276,119190.0,119180.0,0.99337478]
[1752453694288,0.02157276,119190.0,119180.0,0.99837478]
[1752453694510,0.01957276,119190.0,119180.0,0.99837478]
[1752453694732,0.00857276,119190.0,119180.0,0.99737478]
[1752453694960,0.01257276,119190.0,119180.0,0.99737478]
[1752453695187,0.004,119190.0,119180.0,0.99737478]
[1752453695894,0.004,119190.0,119180.0,1.08280471]
[1752453696120,0.004,119190.0,119180.0,1.09734556]
[1752453696607,0.0007,119200.0,119190.0,0.37216879]
[1752453696790,0.0007,119200.0,119190.0,0.58723872]
[1752453697075,0.32707231,119250.0,119230.0,0.03766833]
[1752453697326,0.44311293,119240.0,119230.0,0.03766833]
[1752453697539,0.44311293,119240.0,119230.0,0.36830833]
[1752453698184,0.74681339,119240.0,119230.0,0.36826833]
[1752453698400,0.75951339,119240.0,119230.0,0.3693525]
[1752453698622,0.75951339,119240.0,119230.0,0.3683525]
[1752453698867,0.75951339,119240.0,119230.0,0.33068417]
[1752453699073,0.76936339,119240.0,119230.0,0.20112417]
[1752453699295,1.07306385,119240.0,119230.0,0.33068417]
[1752453699520,0.46866293,119240.0,119230.0,0.33068417]
[1752453699804,1.07606385,119240.0,119230.0,0.33068417]
[1752453700037,1.09056991,119240.0,119230.0,0.20112417]
[1752453700300,1.09056991,119240.0,119230.0,0.33064417]
[1752453701440,1.10511076,119240.0,119230.0,0.20104]
[1752453701637,1.08571076,119240.0,119230.0,0.20104]
[1752453702295,1.10511076,119240.0,119230.0,0.20104]
[1752453702521,1.10511076,119240.0,119200.0,0.05376833]
[1752453702522,0.0194,119230.0,119200.0,0.05376833]
[1752453702760,0.34203,119210.0,119200.0,0.07051742]
[1752453702975,0.42745993,119210.0,119200.0,0.20007742]
[1752453703856,0.42845993,119210.0,119200.0,0.20007742]
[1752453704634,0.42745993,119210.0,119200.0,0.20007742]
[1752453705047,0.43045993,119210.0,119200.0,0.20007742]
[1752453705563,0.43045993,119210.0,119200.0,0.40107742]
[1752453706771,0.43145993,119210.0,119200.0,0.40107742]
[1752453707768,0.43145993,119210.0,119200.0,0.40609742]
[1752453710053,0.43145993,119210.0,119200.0,0.40107742]
[1752453710326,0.73516039,119210.0,119200.0,0.40107742]
[1752453710507,0.73516039,119210.0,119200.0,0.38447742]
[1752453710711,0.43460993,119210.0,119200.0,0.38447742]
[1752453710937,0.43145993,119210.0,119200.0,0.40057742]
[1752453711651,0.44145993,119210.0,119200.0,0.40057742]
[1752453712106,0.74516039,119210.0,119200.0,0.40057742]
[1752453712321,0.74831039,119210.0,119200.0,0.40037742]
[1752453712546,0.44460993,119210.0,119200.0,0.69607742]
[1752453713208,0.74831039,119210.0,119200.0,0.67997742]
[1752453713446,0.44460993,119210.0,119200.0,0.67997742]
[1752453714540,0.44460993,119210.0,119200.0,0.69637742]
[1752453715182,0.74831039,119210.0,119200.0,0.69637742]
[1752453715424,1.07141085,119210.0,119200.0,0.20114909]
[1752453715644,0.79286239,119210.0,119200.0,0.201]
[1752453716084,0.80851422,119210.0,119200.0,0.201]
[1752453716331,0.80451422,119210.0,119200.0,0.201]
[1752453716747,0.81351422,119210.0,119200.0,0.33024]
[1752453717196,0.81351422,119210.0,119180.0,0.06866833]
[1752453717405,0.81351422,119210.0,119180.0,0.06881754]
[1752453717406,0.64370046,119190.0,119180.0,0.06881754]
[1752453717617,0.64573046,119190.0,119180.0,0.06881754]
[1752453718242,0.64573046,119190.0,119180.0,0.19805754]
[1752453719724,0.73531039,119190.0,119180.0,0.00014921]
[1752453719934,0.73531039,119190.0,119180.0,0.12930921]
[1752453720169,0.76046439,119190.0,119180.0,0.12930921]
[1752453720383,0.76046439,119190.0,119180.0,0.16697754]
[1752453720600,0.45676393,119190.0,119180.0,0.16697754]
[1752453720825,0.45361393,119190.0,119180.0,0.19727754]
[1752453721269,0.45361393,119190.0,119180.0,0.49297754]
[1752453721485,0.47920272,119190.0,119180.0,0.32270857]
[1752453722858,0.39174279,119190.0,119180.0,0.76086903]
[1752453723107,0.341,119190.0,119180.0,0.76086903]
[1752453725343,0.341,119190.0,119180.0,0.65820857]
[1752453725554,0.341,119190.0,119180.0,0.96190903]
[1752453727172,0.341,119190.0,119180.0,0.66620903]
[1752453729255,0.341,119190.0,119180.0,0.36246857]
[1752453730717,0.341,119190.0,119180.0,0.66616903]
[1752453730718,0.001,119190.0,119180.0,0.66616903]
[1752453731153,0.001,119190.0,119180.0,1.06183981]
[1752453731582,0.01,119210.0,119190.0,0.06454085]
[1752453731789,0.01,119210.0,119200.0,0.8723517]
[1752453731993,0.01,119210.0,119200.0,0.89755935]
[1752453732407,0.01,119210.0,119200.0,0.29015843]
[1752453732623,0.01,119210.0,119200.0,0.89755935]
[1752453734919,0.01,119210.0,119200.0,0.58644474]
[1752453736068,0.01,119210.0,119200.0,0.88214474]
[1752453736282,0.01,119210.0,119200.0,0.88414474]
[1752453737792,0.01,119210.0,119200.0,1.18043105]
[1752453738028,0.01,119210.0,119200.0,1.05131105]
[1752453738243,0.01,119210.0,119200.0,1.18043105]
[1752453738458,0.01,119210.0,119200.0,0.88414474]
[1752453738881,0.01,119210.0,119200.0,0.75502474]
[1752453739098,0.01,119210.0,119200.0,0.88410474]
[1752453742011,0.01,119210.0,119200.0,0.91148993]
[1752453742232,0.01,119210.0,119200.0,0.54894993]
[1752453742651,0.01,119210.0,119200.0,0.41998993]
[1752453742885,0.01201,119210.0,119200.0,0.46352]
[1752453745012,0.01201,119210.0,119200.0,0.33456]
[1752453745246,0.01201,119210.0,119200.0,0.46352]
[1752453745950,0.01,119210.0,119200.0,0.75980631]
[1752453749992,0.0121,119210.0,119200.0,0.3314]
[1752453750243,0.01,119210.0,119200.0,0.46348]
[1752453750931,0.01,119210.0,119200.0,0.75976631]
[1752453753185,0.01,119210.0,119200.0,0.84519624]
[1752453753625,0.01,119210.0,119200.0,0.85973709]
[1752453753849,0.34324,119250.0,119210.0,0.2857]
[1752453754069,0.34324,119250.0,119230.0,0.0307]
[1752453754279,0.34324,119250.0,119240.0,0.32984]
[1752453754478,0.34534,119250.0,119240.0,0.61554]
[1752453755348,0.34534,119250.0,119240.0,0.61568921]
[1752453755689,0.35034,119250.0,119240.0,0.61568921]
[1752453755893,0.35334,119250.0,119240.0,0.61568921]
[1752453756311,0.36152754,119250.0,119240.0,0.61568921]
[1752453757976,0.35828754,119250.0,119240.0,0.63108921]
[1752453758161,0.35828754,119250.0,119240.0,0.64698921]
[1752453758848,0.36152754,119250.0,119240.0,0.64698921]
[1752453759062,0.36152754,119250.0,119240.0,0.61568921]
[1752453760776,0.01618754,119250.0,119240.0,0.95598465]
[1752453761227,0.35618754,119250.0,119240.0,0.95598465]
[1752453761842,0.35618754,119250.0,119240.0,0.65261921]
[1752453762102,0.35828754,119250.0,119240.0,0.65261921]
[1752453763751,0.35528754,119250.0,119240.0,0.95598465]
[1752453763969,0.35228754,119250.0,119240.0,0.65261921]
[1752453764203,0.35528754,119250.0,119240.0,0.95598465]
[1752453765027,0.35528754,119250.0,119240.0,0.65261921]
[1752453765450,0.35318754,119250.0,119240.0,0.65261921]
[1752453765650,0.35318754,119250.0,119240.0,0.95598465]
[1752453766723,0.35318754,119250.0,119240.0,0.65261921]
[1752453766940,0.35528754,119250.0,119240.0,0.95305465]
[1752453767169,0.35852754,119250.0,119240.0,0.61568921]
[1752453767595,0.35852754,119250.0,119240.0,0.61514485]
[1752453769113,0.35852754,119250.0,119240.0,0.64604485]
[1752453770387,0.35852754,119250.0,119240.0,0.61514485]
[1752453771314,0.35318754,119250.0,119240.0,0.95514029]
[1752453771537,0.35318754,119250.0,119240.0,0.51996485]
[1752453771759,0.35318754,119250.0,119240.0,0.95514029]
[1752453771981,0.005,119250.0,119240.0,1.35847651]
[1752453772199,0.003,119250.0,119240.0,1.35847651]
[1752453772656,0.001,119250.0,119240.0,1.35847651]
[1752453773096,2.0,119260.0,119250.0,0.0308]
[1752453773359,2.0,119260.0,119250.0,0.55047537]
[1752453773585,2.0,119260.0,119250.0,0.55340537]
[1752453776994,2.0,119260.0,119250.0,0.16461]
[1752453777464,2.0,119260.0,119250.0,0.44980564]
[1752453778741,2.00068,119260.0,119250.0,0.44687564]
[1752453779167,2.00068,119260.0,119250.0,0.44683564]
[1752453779381,2.64725544,119260.0,119250.0,0.28519564]
[1752453779597,2.64725544,119260.0,119250.0,0.41403564]
[1752453779803,2.34389,119260.0,119250.0,0.41403564]
[1752453781710,0.3527,119250.0,119240.0,0.48626485]
[1752453781963,0.74528537,119250.0,119240.0,0.61510485]
[1752453782209,0.42921993,119250.0,119240.0,0.61510485]
[1752453782918,0.42921993,119250.0,119240.0,0.48626485]
[1752453783128,0.43121993,119250.0,119240.0,0.61510485]
[1752453783592,0.43421993,119250.0,119240.0,0.61510485]
[1752453783779,0.43421993,119250.0,119240.0,0.32990921]
[1752453784569,0.45963646,119250.0,119240.0,0.32990921]
[1752453787111,0.345,119250.0,119240.0,0.66927465]
[1752453787553,0.005,119250.0,119240.0,1.03990022]
[1752453787774,0.005,119250.0,119240.0,1.35780651]
[1752453788451,0.005,119250.0,119240.0,1.05444107]
[1752453789131,0.003,119250.0,119240.0,1.05444107]
[1752453789390,2.0,119260.0,119240.0,1.02364107]
[1752453789634,2.0,119260.0,119250.0,0.33456544]
[1752453789882,2.0,119260.0,119250.0,0.33976544]
[1752453791468,2.00399,119260.0,119250.0,0.33976544]
[1752453792187,2.00399,119260.0,119250.0,0.0364]
[1752453792419,2.002,119260.0,119250.0,0.0364]
[1752453792890,2.003,119260.0,119250.0,0.33976544]
[1752453798124,2.003,119260.0,119250.0,0.62496108]
[1752453800782,2.00499,119260.0,119250.0,0.62496108]
[1752453802372,2.00499,119260.0,119250.0,0.32159564]
[1752453802621,2.00499,119260.0,119250.0,0.62496108]
[1752453803299,2.00499,119260.0,119250.0,0.61976108]
[1752453803519,2.65143544,119260.0,119250.0,0.28519564]
[1752453803734,2.66413544,119260.0,119250.0,0.41403564]
[1752453804004,2.65143544,119260.0,119250.0,0.28519564]
[1752453804229,2.65143544,119260.0,119250.0,0.41403564]
[1752453804700,2.34499,119260.0,119250.0,0.44573564]
[1752453804946,2.34499,119260.0,119250.0,0.75113108]
[1752453806039,2.34499,119260.0,119250.0,0.75430108]
[1752453808075,2.343,119260.0,119250.0,0.75430108]
[1752453810005,2.343,119260.0,119250.0,0.45093564]
[1752453810211,2.343,119260.0,119250.0,0.75430108]
[1752453810429,2.34508,119260.0,119250.0,0.44776564]
[1752453811781,2.34823,119260.0,119250.0,0.44573564]
[1752453811995,2.34823,119260.0,119250.0,0.28519564]
[1752453812224,2.34823,119260.0,119250.0,0.41403564]
[1752453816079,2.34823,119260.0,119250.0,0.44713564]
[1752453817154,2.34823,119260.0,119250.0,0.41403564]
[1752453817344,2.43365993,119260.0,119250.0,0.41403564]
[1752453818120,2.43365993,119260.0,119250.0,0.44533564]
[1752453818950,2.34823,119260.0,119250.0,0.44533564]
[1752453819390,2.34823,119260.0,119250.0,0.74870108]
[1752453820044,2.34508,119260.0,119250.0,0.74870108]
[1752453820378,2.343,119260.0,119250.0,0.75386108]
[1752453835868,2.343,119260.0,119250.0,0.83929101]
[1752453839265,2.343,119260.0,119250.0,0.53592557]
[1752453839467,2.343,119260.0,119250.0,0.83929101]
[1752453840279,2.343,119260.0,119250.0,0.53592557]
[1752453840541,2.34503,119260.0,119250.0,0.83929101]
[1752453840885,2.34503,119260.0,119250.0,0.31845564]
[1752453841091,2.34819,119260.0,119250.0,0.44529564]
[1752453841300,2.34819,119260.0,119250.0,0.42939564]
[1752453841965,2.34819,119260.0,119250.0,0.44539564]
[1752453842955,2.34503,119260.0,119250.0,0.44539564]
[1752453843195,2.34503,119260.0,119250.0,0.74876108]
[1752453843405,2.34819,119260.0,119250.0,0.74876108]
[1752453844664,2.34503,119260.0,119250.0,0.75075108]
[1752453845077,2.34819,119260.0,119250.0,0.31659564]
[1752453845288,2.34819,119260.0,119250.0,0.41395564]
[1752453846413,2.34819,119260.0,119250.0,0.42995564]
[1752453847083,2.34819,119260.0,119250.0,0.73332108]
[1752453847513,2.34819,119260.0,119250.0,0.74992108]
[1752453850665,2.34819,119260.0,119250.0,0.41395564]
[1752453852646,2.37089,119260.0,119250.0,0.28519564]
[1752453852869,2.75968537,119260.0,119250.0,0.41395564]
[1752453853573,2.45631993,119260.0,119250.0,0.41395564]
[1752453854008,2.44631993,119260.0,119250.0,0.41395564]
[1752453857215,2.43361993,119260.0,119250.0,0.41395564]
[1752453857425,2.34819,119260.0,119250.0,0.74782108]
[1752453857634,2.34503,119260.0,119250.0,0.74782108]
[1752453857822,2.34503,119260.0,119250.0,0.74981108]
[1752453862027,2.34503,119260.0,119250.0,0.74782108]
[1752453862662,2.34819,119260.0,119250.0,0.44445564]
[1752453863402,2.34819,119260.0,119250.0,0.31569564]
[1752453863609,2.34819,119260.0,119250.0,0.44445564]
[1752453863820,2.34819,119260.0,119250.0,0.41395564]
[1752453869197,2.43361993,119260.0,119250.0,0.28519564]
[1752453869411,2.43361993,119260.0,119250.0,0.41395564]
[1752453875358,2.43361993,119260.0,119250.0,0.41391564]
[1752453875572,0.34,119250.0,119240.0,0.48626485]
[1752453875789,0.34499,119250.0,119240.0,0.61498485]
[1752453876344,0.34499,119250.0,119240.0,0.63148485]
[1752453876955,0.34599,119250.0,119240.0,0.63148485]
[1752453877860,0.34599,119250.0,119240.0,0.64778485]
[1752453884496,0.34599,119250.0,119240.0,0.61498485]
[1752453885383,0.34599,119250.0,119240.0,0.64688485]
[1752453901169,0.43141993,119250.0,119240.0,0.64688485]
[1752453901639,0.43141993,119250.0,119240.0,0.48626485]
[1752453901855,0.43141993,119250.0,119240.0,0.61490485]
[1752453902607,0.43141993,119250.0,119240.0,0.64510485]
[1752453903052,0.75748537,119250.0,119240.0,0.20106921]
[1752453903238,0.75748537,119250.0,119240.0,0.32970921]
[1752453903911,0.75648537,119250.0,119240.0,0.32970921]
[1752453904194,0.76148537,119250.0,119240.0,0.32970921]
[1752453905078,0.73878537,119250.0,119240.0,0.32970921]
[1752453905295,0.74178537,119250.0,119240.0,0.32970921]
[1752453905534,0.76685294,119250.0,119240.0,0.32970921]
[1752453905977,0.77955294,119250.0,119240.0,0.32970921]
[1752453906635,0.78955294,119250.0,119240.0,0.32970921]
[1752453908723,0.78929378,119250.0,119240.0,0.32970921]
[1752453909692,0.46322834,119250.0,119240.0,0.32970921]
[1752453909889,0.46018834,119250.0,119240.0,0.66940465]
[1752453910122,0.34774084,119250.0,119240.0,0.66940465]